bitfinex-derivatives/quotes_BTCF0:USTF0_20260207
["timestamp","ask_amount","ask_price","bid_price","bid_amount"]
[1770447741447,0.014498,69015.0,68984.0,0.53817643]
[1770447741754,0.014497,69019.0,68984.0,0.53817643]
[1770447742047,0.014497,69019.0,68989.0,0.014503]
[1770447742246,0.75231875,69024.0,68984.0,0.53817643]
[1770447742449,0.014496,69023.0,68992.0,0.014502]
[1770447742649,0.2085777,69025.0,68995.0,0.014502]
[1770447742953,0.014495,69027.0,68997.0,0.014501]
[1770447743250,0.014496,69024.0,68989.0,0.53817643]
[1770447743449,0.014496,69024.0,68994.0,0.014502]
[1770447743949,0.014495,69029.0,68989.0,0.53817643]
[1770447744154,0.14723912,69030.0,68993.0,0.53817643]
[1770447744446,0.014496,69023.0,68993.0,0.55267843]
[1770447744850,0.54446057,69025.0,68982.0,0.014504]
[1770447745054,0.014498,69014.0,68985.0,0.014504]
[1770447745251,0.014497,69018.0,68989.0,0.014503]
[1770447745451,0.014496,69022.0,68992.0,0.014502]
[1770447746042,0.014497,69016.0,68984.0,0.014504]
[1770447746245,0.014497,69016.0,68982.0,0.53817643]
[1770447746246,0.014499,69009.0,68982.0,0.55268043]
[1770447746453,0.014499,69009.0,68982.0,0.53817643]
[1770447746656,0.014498,69015.0,68986.0,0.014503]
[1770447747042,0.014498,69013.0,68982.0,0.55268043]
[1770447747243,0.014498,69014.0,68985.0,0.014504]
[1770447747447,0.014499,69011.0,68982.0,0.53817643]
[1770447747656,0.014499,69011.0,68983.0,0.55268043]
[1770447747848,0.54446057,69025.0,68987.0,0.014503]
[1770447748057,0.014497,69018.0,68987.0,0.014503]
[1770447748355,0.014498,69015.0,68985.0,0.014504]
[1770447748748,0.014503,68991.0,68981.0,0.20623041]
[1770447748945,0.54446057,69007.0,68959.0,0.014509]
[1770447749263,0.54446057,69007.0,68958.0,0.53817643]
[1770447749264,0.014505,68979.0,68950.0,0.014511]
[1770447749554,0.014505,68980.0,68945.0,0.53817643]
[1770447749755,0.014501,68999.0,68931.0,0.93808]
[1770447749756,0.69169969,68970.0,68933.0,0.53817643]
[1770447749957,0.54446057,68969.0,68933.0,0.53817643]
[1770447750144,0.54446057,68967.0,68931.0,0.014515]
[1770447750350,0.54446057,68965.0,68931.0,0.014515]
[1770447750549,0.54446057,68963.0,68921.0,0.0002]
[1770447750750,0.01451,68957.0,68925.0,0.014516]
[1770447750946,0.20838498,68980.0,68936.0,0.53817643]
[1770447750947,0.014506,68975.0,68936.0,0.53817643]
[1770447751157,0.014506,68974.0,68943.0,0.014513]
[1770447751358,0.014507,68971.0,68943.0,0.014513]
[1770447751553,0.54446057,68992.0,68948.0,0.53817643]
[1770447751759,0.54446057,68992.0,68966.0,0.014508]
[1770447751959,0.54446057,68992.0,68948.0,0.53817643]
[1770447751960,0.014503,68991.0,68959.0,0.014509]
[1770447752157,0.14723912,69000.0,68954.0,0.53817643]
[1770447752358,0.14723912,69000.0,68971.0,0.014507]
[1770447752559,0.014501,69001.0,68971.0,0.014507]
[1770447752855,0.54446057,69020.0,68974.0,0.53817643]
[1770447753172,0.014502,68993.0,68961.0,0.53817643]
[1770447753358,0.54446057,69007.0,68962.0,0.014509]
[1770447753555,0.014503,68989.0,68961.0,0.53817643]
[1770447753956,0.014503,68989.0,68961.0,0.55268543]
[1770447754158,0.014503,68989.0,68957.0,0.01451]
[1770447754452,0.54446057,68989.0,68953.0,0.01451]
[1770447754652,0.72926975,68989.0,68948.0,0.53817643]
[1770447755059,0.014504,68985.0,68955.0,0.01451]
[1770447755657,0.014504,68985.0,68954.0,0.01451]
[1770447755965,0.72926975,68989.0,68948.0,0.53817643]
[1770447755966,0.014504,68986.0,68948.0,0.53817643]
[1770447756164,0.72926975,68989.0,68948.0,0.53817643]
[1770447756458,0.014504,68983.0,68952.0,0.014511]
[1770447756666,0.18480918,68989.0,68952.0,0.56729674]
[1770447756960,0.014503,68987.0,68960.0,0.014509]
[1770447757262,0.014504,68986.0,68955.0,0.01451]
[1770447757456,0.52935571,68989.0,68941.0,0.56729674]
[1770447757457,0.014504,68983.0,68954.0,0.01451]
[1770447757859,0.014503,68987.0,68957.0,0.01451]
[1770447758259,0.52935571,68981.0,68928.0,0.56729674]
[1770447758462,0.014509,68963.0,68928.0,0.56729674]
[1770447758659,0.014508,68967.0,68948.0,0.0002]
[1770447758869,0.014508,68964.0,68934.0,0.014514]
[1770447759066,0.52935571,68969.0,68934.0,0.014514]
[1770447759260,0.014509,68960.0,68934.0,0.014514]
[1770447759565,0.52935571,68966.0,68927.0,0.014516]
[1770447759566,0.014511,68953.0,68927.0,0.014516]
[1770447759865,0.52935571,68966.0,68934.0,0.014514]
[1770447760068,0.014509,68963.0,68934.0,0.014514]
[1770447760367,0.01451,68956.0,68926.0,0.014516]
[1770447760558,0.014511,68953.0,68926.0,0.014516]
[1770447760758,0.54386671,68952.0,68922.0,0.014517]
[1770447760963,0.54386671,68952.0,68918.0,0.014518]
[1770447760964,0.014512,68946.0,68918.0,0.014518]
[1770447761266,0.18684865,68956.0,68930.0,0.014515]
[1770447761463,0.18684865,68956.0,68917.0,0.56729674]
[1770447761464,0.01451,68956.0,68926.0,0.014516]
[1770447762057,0.01451,68956.0,68929.0,0.014515]
[1770447762368,0.014511,68953.0,68925.0,0.014516]
[1770447762671,0.014511,68953.0,68917.0,0.56729674]
[1770447762672,0.19094407,68959.0,68934.0,0.014515]
[1770447762856,0.52935571,68965.0,68934.0,0.014515]
[1770447763058,0.52935571,68965.0,68931.0,0.014515]
[1770447763460,0.014509,68963.0,68937.0,0.014514]
[1770447763661,0.18578365,68969.0,68928.0,0.56729674]
[1770447763858,0.014506,68976.0,68937.0,0.56729674]
[1770447764060,0.52935571,68978.0,68952.0,0.014511]
[1770447764255,0.52935571,68978.0,68940.0,0.54180674]
[1770447764460,0.014507,68968.0,68924.0,0.56729674]
[1770447764860,0.014508,68965.0,68924.0,0.56729674]
[1770447765164,0.014509,68962.0,68931.0,0.014515]
[1770447765766,0.014509,68963.0,68934.0,0.014514]
[1770447766157,0.2015557,68963.0,68934.0,0.014514]
[1770447766361,0.1870467,68963.0,68926.0,0.56729674]
[1770447766560,0.014507,68971.0,68929.0,0.56729674]
[1770447766762,0.18933876,68977.0,68951.0,0.014511]
[1770447766967,0.54386071,68980.0,68951.0,0.014511]
[1770447767157,0.014506,68977.0,68947.0,0.014512]
[1770447767362,0.014506,68977.0,68944.0,0.56729674]
[1770447767363,0.52935571,68980.0,68954.0,0.01451]
[1770447767966,0.52935571,68980.0,68957.0,0.01451]
[1770447768169,0.52935571,68980.0,68956.0,0.01451]
[1770447768564,0.19074139,68983.0,68961.0,0.014509]
[1770447768762,0.014506,68975.0,68947.0,0.56729674]
[1770447768964,0.52935571,68983.0,68947.0,0.56729674]
[1770447768965,0.014505,68979.0,68951.0,0.014511]
[1770447769362,0.014506,68976.0,68947.0,0.014512]
[1770447769769,1.7e-07,68990.0,68986.0,0.014503]
[1770447769975,0.18925568,68992.0,68955.0,0.56729674]
[1770447770168,0.52935571,68983.0,68942.0,0.56729674]
[1770447770369,0.54386071,68982.0,68942.0,0.56729674]
[1770447770669,0.52935571,68982.0,68949.0,0.014511]
[1770447770868,0.52935571,68982.0,68942.0,0.56729674]
[1770447770869,0.52935571,68982.0,68948.0,0.014511]
[1770447771070,0.52935571,68982.0,68942.0,0.56729674]
[1770447771272,0.52935571,68982.0,68920.0,0.14723912]
[1770447771273,0.014507,68970.0,68929.0,0.56729674]
[1770447771468,0.52935571,68967.0,68929.0,0.56729674]
[1770447771672,0.52935571,68963.0,68917.0,0.56729674]
[1770447771872,0.52935571,68960.0,68917.0,0.56729674]
[1770447772370,0.52935571,68960.0,68917.0,0.55181174]
[1770447772675,0.52935571,68953.0,68925.0,0.014516]
[1770447772872,0.52935571,68951.0,68925.0,0.014516]
[1770447773177,0.52935571,68951.0,68924.0,0.014517]
[1770447773375,0.52935571,68951.0,68927.0,0.014516]
[1770447773772,0.1880354,68963.0,68917.0,0.55181174]
[1770447773972,0.52935571,68962.0,68928.0,0.014516]
[1770447774274,0.18655229,68970.0,68902.0,0.2092081]
[1770447774275,0.52935571,68941.0,68902.0,0.2092081]
[1770447774471,0.52935571,68936.0,68901.0,0.014721]
[1770447774776,0.52935571,68925.0,68901.0,0.0002]
[1770447774970,0.52935571,68925.0,68892.0,0.014523]
[1770447775274,0.014518,68918.0,68887.0,0.014524]
[1770447775577,0.014521,68903.0,68872.0,0.014528]
[1770447775772,0.52935571,68898.0,68867.0,0.0002]
[1770447775978,0.52935571,68898.0,68873.0,0.014527]
[1770447776171,0.52935571,68898.0,68850.0,0.14723912]
[1770447776172,0.52935571,68898.0,68857.0,0.56729674]
[1770447776378,0.52935571,68898.0,68872.0,0.014528]
[1770447776678,0.52935571,68898.0,68867.0,0.014529]
[1770447776875,0.54387771,68898.0,68860.0,0.56729674]
[1770447777080,0.52935571,68897.0,68866.0,0.014529]
[1770447777377,0.52935571,68896.0,68865.0,0.014529]
[1770447777573,0.52935571,68896.0,68864.0,0.014529]
[1770447777968,0.52935571,68896.0,68851.0,0.0002]
[1770447778174,0.18610386,68898.0,68851.0,0.0002]
[1770447778175,0.18610386,68898.0,68864.0,0.56729674]
[1770447778481,0.52935571,68904.0,68873.0,0.014527]
[1770447778677,0.52935571,68902.0,68868.0,0.014528]
[1770447779076,0.52935571,68900.0,68863.0,0.014529]
[1770447779375,0.52935571,68896.0,68863.0,0.014529]
[1770447779678,0.52935571,68894.0,68862.0,0.01453]
[1770447779879,0.54388071,68884.0,68847.0,0.014533]
[1770447780281,0.52935571,68884.0,68840.0,0.56729674]
[1770447780468,0.52935571,68899.0,68851.0,0.56729674]
[1770447780673,0.52935571,68897.0,68851.0,0.56729674]
[1770447780873,0.52935571,68897.0,68874.0,0.0018858]
[1770447781074,0.54387771,68897.0,68874.0,0.0018858]
[1770447781270,0.52935571,68897.0,68885.0,0.00379097]
[1770447781468,0.54387871,68894.0,68860.0,0.0002]
[1770447781681,0.52935571,68894.0,68865.0,0.014529]
[1770447781980,0.52935571,68894.0,68860.0,0.0002]
[1770447782186,0.18749522,68900.0,68869.0,0.014528]
[1770447782377,0.18834132,68912.0,68891.0,0.014523]
[1770447782683,0.52935571,68905.0,68867.0,0.56729674]
[1770447782980,0.52935571,68905.0,68875.0,0.014527]
[1770447783187,0.71491443,68905.0,68879.0,0.014526]
[1770447783577,0.71491443,68905.0,68867.0,0.56729674]
[1770447783578,0.52935571,68904.0,68874.0,0.014527]
[1770447784175,0.18555872,68905.0,68871.0,0.56729674]
[1770447784477,0.18555872,68905.0,68859.0,0.01453]
[1770447784478,0.52935571,68958.0,68904.0,0.56729674]
[1770447784687,0.52935571,68950.0,68920.0,0.014517]
[1770447784881,0.52935571,68950.0,68924.0,0.014517]
[1770447785073,0.18578129,68962.0,68948.0,0.014512]
[1770447785280,0.52935571,68973.0,68944.0,0.014512]
[1770447785483,0.52935571,68973.0,68916.0,0.014518]
[1770447785484,0.52935571,68973.0,68941.0,0.014513]
[1770447785777,0.52935571,68973.0,68945.0,0.014512]
[1770447785977,0.52935571,68973.0,68934.0,0.56729674]
[1770447786279,0.0002,68998.0,68916.0,0.014518]
[1770447786280,0.5799832,68986.0,68946.0,0.60291442]
[1770447786479,0.5799832,68996.0,68951.0,0.014511]
[1770447786675,0.014504,68983.0,68951.0,0.014511]
[1770447786877,0.014505,68979.0,68945.0,0.014512]
[1770447787077,0.5799832,68983.0,68952.0,0.014511]
[1770447787273,0.5799832,68983.0,68963.0,0.014508]
[1770447787584,0.18876986,68983.0,68936.0,0.53035342]
[1770447787885,0.5944882,68982.0,68947.0,0.014512]
[1770447788076,0.5799832,68982.0,68953.0,0.01451]
[1770447788277,0.5799832,68981.0,68936.0,0.50486542]
[1770447788482,0.5944892,68977.0,68944.0,0.014512]
[1770447788681,0.5799832,68977.0,68936.0,0.50486542]
[1770447788889,0.014511,68952.0,68936.0,0.35863091]
[1770447789077,0.55602036,68947.0,68913.0,0.014519]
[1770447789278,0.19034748,68977.0,68900.0,0.53211028]
[1770447789279,0.55602036,68944.0,68900.0,0.53211028]
[1770447789481,0.55602036,68933.0,68889.0,0.0002]
[1770447789779,0.55602036,68933.0,68909.0,0.01452]
[1770447789985,0.01451,68956.0,68921.0,0.014517]
[1770447790183,0.55602036,68957.0,68908.0,0.54663028]
[1770447790485,0.55602036,68957.0,68931.0,0.014515]
[1770447790788,0.55602036,68957.0,68925.0,0.014516]
[1770447791580,0.01451,68956.0,68920.0,0.014517]
[1770447791779,0.01451,68956.0,68924.0,0.014517]
[1770447792284,0.01451,68956.0,68912.0,0.53211028]
[1770447792878,0.55602036,68956.0,68898.0,0.53211028]
[1770447793083,0.014515,68934.0,68898.0,0.53211028]
[1770447793284,0.57053536,68934.0,68898.0,0.53211028]
[1770447793688,0.75479159,68934.0,68898.0,0.53211028]
[1770447793890,0.74027659,68934.0,68903.0,0.014521]
[1770447794284,0.014515,68933.0,68898.0,0.54663228]
[1770447794580,0.18425623,68934.0,68910.0,0.01452]
[1770447794788,0.014513,68940.0,68904.0,0.014521]
[1770447795087,0.014514,68936.0,68904.0,0.014521]
[1770447795288,0.55602036,68932.0,68894.0,0.014523]
[1770447795487,0.014517,68922.0,68889.0,0.014524]
[1770447795687,0.57053836,68918.0,68872.0,0.53231028]
[1770447795889,0.57053836,68918.0,68870.0,0.014528]
[1770447795890,0.014522,68901.0,68870.0,0.014528]
[1770447796192,0.014518,68918.0,68859.0,0.53211028]
[1770447796193,0.55602036,68897.0,68859.0,0.53211028]
[1770447796381,0.55602036,68897.0,68868.0,0.014528]
[1770447796585,0.55602036,68897.0,68859.0,0.53211028]
[1770447796586,0.55602036,68896.0,68864.0,0.014529]
[1770447796784,0.014523,68895.0,68859.0,0.50663928]
[1770447796982,0.57054336,68895.0,68859.0,0.52116928]
[1770447797182,0.014526,68879.0,68836.0,0.0002]
[1770447797393,0.57054836,68871.0,68836.0,0.014735]
[1770447797691,0.55602036,68884.0,68860.0,0.01453]
[1770447797896,0.74612315,68884.0,68845.0,0.53211028]
[1770447798294,0.74612315,68884.0,68830.0,0.14790265]
[1770447798295,0.1842743,68895.0,68860.0,0.01453]
[1770447798493,0.55602036,68892.0,68853.0,0.014532]
[1770447798790,0.55602036,68887.0,68848.0,0.014533]
[1770447798986,0.55602036,68887.0,68839.0,0.53211028]
[1770447799193,0.55602036,68887.0,68857.0,0.014531]
[1770447799584,0.55602036,68887.0,68839.0,0.53211028]
[1770447799585,0.014525,68885.0,68839.0,0.53211028]
[1770447799789,0.55602036,68887.0,68854.0,0.014531]
[1770447800392,0.18795941,68892.0,68852.0,0.53211028]
[1770447800594,0.55602036,68901.0,68871.0,0.014528]
[1770447800893,0.014516,68927.0,68891.0,0.014523]
[1770447801094,0.55602036,68928.0,68881.0,0.53211028]
[1770447801291,0.014518,68917.0,68884.0,0.014525]
[1770447801496,0.55602036,68920.0,68888.0,0.014524]
[1770447801792,0.55602036,68920.0,68897.0,0.014522]
[1770447802090,0.55602036,68909.0,68868.0,0.53211028]
[1770447802498,0.55602036,68909.0,68875.0,0.014527]
[1770447802798,0.57054036,68909.0,68875.0,0.014527]
[1770447802998,0.55602036,68909.0,68879.0,0.014526]
[1770447803197,0.55602036,68909.0,68868.0,0.53211028]
[1770447803400,0.55602036,68909.0,68884.0,0.014525]
[1770447803802,0.55602036,68909.0,68868.0,0.53211028]
[1770447803994,0.55602036,68928.0,68891.0,0.53211028]
[1770447804396,0.55602036,68928.0,68894.0,0.014523]
[1770447804599,0.57053736,68924.0,68878.0,0.53211028]
[1770447804809,0.57053736,68921.0,68878.0,0.53211028]
[1770447805302,0.55602036,68916.0,68886.0,0.014525]
[1770447805597,0.55602036,68914.0,68878.0,0.53211028]
[1770447805794,0.55602036,68914.0,68881.0,0.014526]
[1770447805996,0.014521,68902.0,68868.0,0.014528]
[1770447806200,0.55602036,68902.0,68868.0,0.014528]
[1770447806498,0.57054236,68898.0,68852.0,0.53211028]
[1770447806689,0.57054236,68898.0,68866.0,0.014529]
[1770447807204,0.55602036,68898.0,68869.0,0.014528]
[1770447807399,0.55602036,68898.0,68852.0,0.53211028]
[1770447807603,0.57054236,68897.0,68867.0,0.014529]
[1770447807901,0.55602036,68897.0,68871.0,0.014528]
[1770447808107,0.18366953,68897.0,68867.0,0.53211028]
[1770447808405,0.55602036,68910.0,68885.0,0.014525]
[1770447808603,0.55602036,68910.0,68888.0,0.014524]
[1770447808905,0.19024862,68916.0,68891.0,0.014524]
[1770447809105,0.55602036,68923.0,68887.0,0.014524]
[1770447809400,0.55602036,68923.0,68854.0,0.52706612]
[1770447809401,0.014522,68898.0,68868.0,0.014528]
[1770447809701,0.014518,68919.0,68861.0,0.53211028]
[1770447809702,0.55602036,68896.0,68861.0,0.53211028]
[1770447809896,0.55602036,68888.0,68861.0,0.53211028]
[1770447810092,0.55602036,68888.0,68867.0,0.014529]
[1770447810297,0.18675411,68898.0,68861.0,0.53211028]
[1770447810298,0.55602036,68885.0,68861.0,0.53211028]
[1770447810595,0.18675411,68898.0,68861.0,0.53211028]
[1770447810596,0.55602036,68880.0,68867.0,0.43383255]
[1770447810797,0.55602036,68894.0,68863.0,0.014529]
[1770447810998,0.014523,68893.0,68863.0,0.014529]
[1770447811195,0.55602036,68894.0,68861.0,0.09272721]
[1770447811501,0.58333333,68862.0,68817.0,0.0002]
[1770447811692,0.58333333,68855.0,68828.0,0.014537]
[1770447811898,0.014529,68867.0,68834.0,0.014536]
[1770447812196,0.58333333,68870.0,68812.0,0.01454]
[1770447812395,0.76756831,68870.0,68824.0,0.014538]
[1770447812692,0.76756831,68870.0,68820.0,0.14790265]
[1770447812897,0.58333333,68869.0,68840.0,0.014534]
[1770447813101,0.59786133,68869.0,68840.0,0.014534]
[1770447813904,0.014529,68866.0,68836.0,0.014535]
[1770447814103,0.58333333,68860.0,68831.0,0.014536]
[1770447814404,0.18423498,68870.0,68815.0,0.00017689]
[1770447814405,0.59786533,68852.0,68815.0,0.00017689]
[1770447814708,0.58333333,68848.0,68823.0,0.014538]
[1770447815606,0.01453,68859.0,68827.0,0.014537]
[1770447815808,0.014531,68855.0,68823.0,0.014538]
[1770447816001,0.01453,68859.0,68826.0,0.014537]
[1770447816203,0.59786333,68859.0,68826.0,0.014537]
[1770447816798,0.59786433,68855.0,68822.0,0.014538]
[1770447816996,0.58333333,68855.0,68833.0,0.014536]
[1770447817202,0.18740011,68860.0,68833.0,0.014536]
[1770447817396,0.014529,68865.0,68811.0,0.072704]
[1770447817606,0.58333333,68868.0,68832.0,0.014536]
[1770447817607,0.01453,68862.0,68832.0,0.014536]
[1770447817809,0.014529,68866.0,68835.0,0.014535]
[1770447818005,0.18423498,68870.0,68802.0,0.072714]
[1770447818006,0.58333333,68861.0,68802.0,0.072714]
[1770447818316,0.58333333,68861.0,68832.0,0.014536]
[1770447818604,0.58333333,68861.0,68812.0,0.01454]
[1770447818605,0.58333333,68861.0,68831.0,0.014536]
[1770447818806,0.58333333,68861.0,68832.0,0.014536]
[1770447819211,0.77805042,68861.0,68835.0,0.014535]
[1770447819406,0.18423498,68870.0,68821.0,0.072693]
[1770447819612,0.58333333,68869.0,68841.0,0.014534]
[1770447819905,0.58333333,68869.0,68847.0,0.014533]
[1770447820212,0.19388974,68874.0,68847.0,0.014533]
[1770447820416,0.19388974,68874.0,68821.0,0.014538]
[1770447820417,0.014527,68876.0,68832.0,0.014536]
[1770447820606,0.014527,68876.0,68820.0,0.14790265]
[1770447820607,0.58333333,68881.0,68836.0,0.072678]
[1770447820812,0.58333333,68881.0,68837.0,0.087212]
[1770447821121,0.58333333,68881.0,68852.0,0.014532]
[1770447821314,0.58333333,68881.0,68858.0,0.01453]
[1770447821518,0.18666011,68884.0,68838.0,0.014535]
[1770447821716,0.58333333,68883.0,68838.0,0.014535]
[1770447821916,0.014525,68884.0,68824.0,0.28685495]
[1770447821917,0.59786033,68876.0,68845.0,0.014533]
[1770447822123,0.58333333,68872.0,68840.0,0.014534]
[1770447822324,0.58333333,68864.0,68816.0,0.014539]
[1770447822519,0.58333333,68862.0,68816.0,0.014539]
[1770447822914,0.58333333,68862.0,68834.0,0.014536]
[1770447823127,0.58333333,68855.0,68804.0,0.28685495]
[1770447823425,0.58333333,68852.0,68825.0,0.014537]
[1770447823921,0.58333333,68852.0,68827.0,0.014537]
[1770447824115,0.58333333,68852.0,68828.0,0.014537]
[1770447824520,0.58333333,68852.0,68805.0,0.072711]
[1770447824820,0.58333333,68851.0,68823.0,0.014538]
[1770447825120,0.58333333,68863.0,68812.0,0.21582187]
[1770447825321,0.58333333,68875.0,68816.0,0.21582187]
[1770447825517,0.58333333,68875.0,68842.0,0.52655976]
[1770447825721,0.58333333,68873.0,68821.0,0.23035987]
[1770447825919,0.59786133,68872.0,68821.0,0.014538]
[1770447826316,0.58333333,68872.0,68825.0,0.07269]
[1770447826521,0.58333333,68872.0,68825.0,0.087227]
[1770447826723,0.58333333,68872.0,68825.0,0.014537]
[1770447826924,0.58333333,68872.0,68841.0,0.014534]
[1770447827219,0.58333333,68868.0,68838.0,0.014535]
[1770447827419,0.58333333,68868.0,68819.0,0.072696]
[1770447827828,0.58333333,68868.0,68842.0,0.014534]
[1770447828218,0.58333333,68866.0,68838.0,0.014535]
[1770447828619,0.014521,68904.0,68816.0,0.28685495]
[1770447828620,0.58333333,68884.0,68871.0,0.014528]
[1770447828922,0.58333333,68896.0,68863.0,0.014529]
[1770447829228,0.20454533,68897.0,68870.0,0.014528]
[1770447829229,0.58333333,68894.0,68870.0,0.014528]
[1770447829415,0.19002233,68897.0,68880.0,0.014526]
[1770447829618,0.58333333,68906.0,68864.0,0.014529]
[1770447829826,0.58333333,68906.0,68856.0,0.014531]
[1770447830031,0.58333333,68904.0,68879.0,0.014526]
[1770447830821,0.58333333,68904.0,68836.0,0.30138995]
[1770447830822,0.58333333,68881.0,68836.0,0.30138995]
[1770447831120,0.58333333,68881.0,68853.0,0.014532]
[1770447831526,0.58333333,68879.0,68835.0,0.072679]
[1770447831721,0.58333333,68879.0,68865.0,0.014529]
[1770447831922,0.58333333,68879.0,68862.0,0.01453]
[1770447832130,0.58333333,68879.0,68861.0,0.01453]
[1770447832429,0.58333333,68879.0,68863.0,0.014529]
[1770447832629,0.58333333,68879.0,68859.0,0.01453]
[1770447833225,0.58333333,68879.0,68858.0,0.01453]
[1770447833528,0.58333333,68879.0,68843.0,0.014534]
[1770447833729,0.58333333,68879.0,68862.0,0.01453]
[1770447834026,0.58333333,68879.0,68843.0,0.014534]
[1770447834027,0.58333333,68891.0,68875.0,0.014527]
[1770447834328,0.58333333,68894.0,68874.0,0.014527]
[1770447834928,0.58333333,68894.0,68855.0,0.014531]
[1770447835128,0.58333333,68894.0,68864.0,0.014529]
[1770447835322,0.58333333,68890.0,68848.0,0.014533]
[1770447835523,0.20232719,68895.0,68829.0,0.42763021]
[1770447835524,0.58333333,68882.0,68836.0,0.34999823]
[1770447835830,0.58333333,68880.0,68853.0,0.014532]
[1770447836125,0.58333333,68875.0,68845.0,0.014533]
[1770447836322,0.58333333,68875.0,68831.0,0.014536]
[1770447836526,0.58333333,68875.0,68832.0,0.072682]
[1770447836724,0.58333333,68875.0,68836.0,0.072678]
[1770447836924,0.58333333,68875.0,68857.0,0.014531]
[1770447837126,0.58333333,68875.0,68860.0,0.01453]
[1770447837635,0.58333333,68888.0,68840.0,0.14790265]
[1770447837826,0.18755497,68894.0,68874.0,0.014527]
[1770447838025,0.58333333,68893.0,68870.0,0.014528]
[1770447838331,0.58333333,68893.0,68873.0,0.014527]
[1770447838530,0.58333333,68905.0,68881.0,0.014526]
[1770447838728,0.58333333,68905.0,68883.0,0.014525]
[1770447838929,0.58333333,68905.0,68880.0,0.014526]
[1770447839138,0.58333333,68905.0,68867.0,0.072645]
[1770447839435,0.19220596,68912.0,68893.0,0.014523]
[1770447839630,0.58333333,68916.0,68896.0,0.014522]
[1770447839836,0.58333333,68929.0,68872.0,0.07264]
[1770447840025,0.58333333,68929.0,68905.0,0.014521]
[1770447840332,0.58333333,68929.0,68880.0,0.14767918]
[1770447840333,0.58333333,68929.0,68898.0,0.54109176]
[1770447840538,0.58333333,68929.0,68877.0,0.014526]
[1770447840539,0.58333333,68953.0,68929.0,0.014515]
[1770447840739,0.0002,68959.0,68907.0,0.072603]
[1770447840740,0.58333333,68946.0,68907.0,0.072603]
[1770447841034,0.58333333,68958.0,68910.0,0.072599]
[1770447841233,0.1931708,68961.0,68904.0,0.014521]
[1770447841234,0.58333333,68952.0,68925.0,0.014516]
[1770447841435,0.58333333,68952.0,68921.0,0.014517]
[1770447841622,0.77200508,68952.0,68904.0,0.014521]
[1770447841829,0.58333333,68966.0,68932.0,0.072576]
[1770447842023,0.19257477,68975.0,68946.0,0.014512]
[1770447842237,0.58333333,68972.0,68940.0,0.014513]
[1770447842628,0.58333333,68970.0,68935.0,0.014514]
[1770447842927,0.58333333,68970.0,68905.0,0.014521]
[1770447842928,0.58333333,68959.0,68929.0,0.014516]
[1770447843329,0.58333333,68973.0,68922.0,0.072587]
[1770447843633,0.58333333,68973.0,68932.0,0.072577]
[1770447843834,0.19465126,68989.0,68961.0,0.014509]
[1770447843835,0.58333333,68987.0,68961.0,0.014509]
[1770447844032,0.58333333,68987.0,68955.0,0.01451]
[1770447844533,0.58333333,68987.0,68965.0,0.014508]
[1770447844723,0.0002,68984.0,68965.0,0.014508]
[1770447845326,0.0002,68984.0,68970.0,0.014507]
[1770447845527,0.58314156,69001.0,68970.0,0.014507]
[1770447845725,0.0002,68989.0,68970.0,0.014507]
[1770447845929,0.58314156,69001.0,68955.0,0.072552]
[1770447846130,0.58314156,69001.0,68935.0,0.46024]
[1770447846131,0.0002,69002.0,68978.0,0.014505]
[1770447846735,0.58333333,69001.0,68970.0,0.014507]
[1770447846934,0.58333333,69001.0,68957.0,0.07255]
[1770447847334,0.58333333,69001.0,68976.0,0.014506]
[1770447847526,0.014501,69000.0,68949.0,0.072558]
[1770447847732,0.18731045,69010.0,68962.0,0.072545]
[1770447847934,0.0002,68992.0,68976.0,0.014506]
[1770447848136,0.58333333,69013.0,68981.0,0.014505]
[1770447848337,0.0002,68997.0,68976.0,0.014506]
[1770447848836,0.0002,68997.0,68962.0,0.072545]
[1770447849029,0.0002,69007.0,68962.0,0.072545]
[1770447849230,0.0002,69007.0,68960.0,0.14767918]
[1770447849231,0.0002,69007.0,68975.0,0.014506]
[1770447849436,0.0002,69007.0,68983.0,0.014504]
[1770447850128,0.0002,69014.0,68983.0,0.014504]
[1770447850324,0.0002,69014.0,68962.0,0.072544]
[1770447850532,0.0002,69014.0,68987.0,0.014503]
[1770447851036,0.58353333,69014.0,68963.0,0.072544]
[1770447851335,0.58333333,69014.0,68984.0,0.014504]
[1770447851531,0.58333333,69014.0,68989.0,0.014503]
[1770447852031,0.58333333,69014.0,68969.0,0.072537]
[1770447852032,0.0002,69037.0,69001.0,0.0145]
[1770447852232,0.77967654,69059.0,69010.0,0.072494]
[1770447852426,0.58333333,69058.0,69025.0,0.014495]
[1770447853031,0.58333333,69058.0,69005.0,0.0725]
[1770447853240,0.58333333,69058.0,69020.0,0.014496]
[1770447854038,0.58333333,69058.0,69024.0,0.014495]
[1770447854929,0.58333333,69055.0,68995.0,0.18776]
[1770447855132,0.58333333,69041.0,68988.0,0.072517]
[1770447855439,0.58333333,69041.0,69022.0,0.014496]
[1770447855634,0.58333333,69058.0,69026.0,0.014495]
[1770447855830,0.58333333,69055.0,69017.0,0.014497]
[1770447856042,0.58333333,69055.0,68993.0,0.072512]
[1770447856043,0.58333333,69045.0,69013.0,0.014498]
[1770447856247,0.58333333,69041.0,69002.0,0.0145]
[1770447856542,0.59782733,69033.0,68981.0,0.072525]
[1770447856737,0.58333333,69028.0,68993.0,0.014502]
[1770447856937,0.014489,69056.0,68987.0,0.014503]
[1770447856938,0.58333333,69024.0,68987.0,0.014503]
[1770447857736,0.58333333,69022.0,68987.0,0.014503]
[1770447857936,0.58333333,69020.0,68987.0,0.014503]
[1770447858138,0.58333333,69018.0,68960.0,0.072547]
[1770447858338,0.58333333,69010.0,68979.0,0.014505]
[1770447858537,0.014502,68994.0,68929.0,0.00014307]
[1770447858847,0.58333333,68995.0,68960.0,0.014509]
[1770447859143,0.58333333,68990.0,68935.0,0.072574]
[1770447859349,0.58333333,68985.0,68930.0,0.014515]
[1770447859545,0.58333333,68998.0,68976.0,0.014506]
[1770447859733,0.58333333,68998.0,68981.0,0.014505]
[1770447859935,0.18961202,69007.0,68987.0,0.014503]
[1770447860146,0.58333333,69015.0,68998.0,0.014501]
[1770447860351,0.59782833,69029.0,68994.0,0.014502]
[1770447860645,0.19297156,69030.0,68966.0,0.072541]
[1770447860646,0.58333333,69018.0,68966.0,0.072541]
[1770447860842,0.58333333,69016.0,68967.0,0.014507]